bitfinex/quotes_ETHUSD_20250403
["timestamp","ask_amount","ask_price","bid_price","bid_amount"]
[1743690260375,6.1927,1772.2,1772.1,0.05]
[1743690260569,8.065239,1772.2,1772.1,0.05]
[1743690261515,8.851039,1772.2,1772.1,0.05]
[1743690261872,11.851039,1772.2,1772.1,0.05]
[1743690262303,11.301039,1772.2,1772.1,0.05]
[1743690262708,8.6427,1772.2,1772.1,0.05]
[1743690263086,9.1927,1772.2,1772.1,0.05]
[1743690263875,9.1927,1772.2,1771.2,0.4143658]
[1743690263876,5.64475,1771.6,1771.2,6.4542]
[1743690264096,12.5333,1771.7,1771.3,0.0564472]
[1743690264295,12.5343,1771.7,1771.4,5.64521]
[1743690264490,12.5343,1771.7,1771.3,5.7018572]
[1743690264702,6.89,1771.7,1771.4,5.64512]
[1743690264910,12.53442,1771.7,1771.3,5.64541]
[1743690265087,12.53442,1771.7,1771.3,11.34724707]
[1743690265288,12.53442,1771.7,1771.3,11.2908]
[1743690265491,12.53442,1771.7,1771.4,5.64521]
[1743690265689,6.89,1771.7,1771.4,5.70165706]
[1743690265884,6.89,1771.7,1771.4,5.64521]
[1743690266091,12.5343,1771.7,1771.4,5.70165707]
[1743690266311,14.352132,1771.7,1771.3,5.64539]
[1743690266589,14.352132,1771.7,1771.3,5.70183705]
[1743690266980,5.64461,1771.6,1771.3,5.70183705]
[1743690267193,11.28942,1771.6,1771.2,6.45425]
[1743690267592,5.64497,1771.5,1771.2,6.45425]
[1743690267793,11.28941,1771.6,1771.2,6.45412]
[1743690267991,5.64527,1771.4,1771.1,0.05]
[1743690268311,5.64588,1771.2,1771.1,0.05]
[1743690268515,12.53488,1771.2,1771.1,0.05]
[1743690270919,6.889,1771.2,1771.1,0.05]
[1743690271352,12.53488,1771.2,1771.1,0.05]
[1743690272117,17.352925,1771.2,1771.1,0.05]
[1743690272317,18.727025,1771.2,1771.1,0.05]
[1743690273017,12.53488,1771.2,1771.1,0.05]
[1743690273221,13.08488,1771.2,1771.1,0.05]
[1743690273385,12.53488,1771.2,1771.1,0.05]
[1743690273588,13.08488,1771.2,1771.1,0.05]
[1743690274219,13.86178,1771.2,1771.1,0.05]
[1743690274421,15.812515,1771.2,1771.1,0.05]
[1743690274926,5.64537,1771.4,1771.1,0.05]
[1743690275095,12.53488,1771.2,1771.1,0.05]
[1743690275718,6.889,1771.2,1771.1,0.05]
[1743690278348,13.47460509,1771.2,1771.1,0.05]
[1743690278716,17.84190509,1771.2,1771.1,0.05]
[1743690279121,21.72379088,1771.2,1771.1,1e-05]
[1743690281446,5.6489,1770.3,1770.1,0.05]
[1743690281651,6.889,1770.2,1770.1,0.05]
[1743690282019,13.26926839,1770.2,1770.1,0.05]
[1743690282238,13.81926839,1770.2,1770.1,0.05]
[1743690282436,17.57146839,1770.2,1770.1,0.05]
[1743690283021,17.99829042,1770.2,1770.1,0.05]
[1743690287632,14.24609042,1770.2,1770.1,0.05]
[1743690288026,17.24609042,1770.2,1770.1,0.05]
[1743690288450,8.64907,1770.2,1770.1,0.05]
[1743690288657,16.08807,1770.2,1770.1,0.05]
[1743690289219,16.51172603,1770.2,1770.1,0.05]
[1743690289418,9.889,1770.2,1770.1,0.05]
[1743690289652,3.0,1770.2,1770.1,0.05]
[1743690289829,6.888,1770.2,1770.1,0.05]
[1743690290551,6.888,1770.2,1770.1,6.48159]
[1743690290752,6.888,1770.5,1770.3,5.64851]
[1743690291144,6.888,1770.5,1770.2,5.64889]
[1743690291328,6.888,1770.5,1770.4,5.64844]
[1743690291521,6.888,1770.8,1770.6,5.6478]
[1743690291953,6.888,1770.8,1770.7,5.64748]
[1743690292359,6.888,1771.2,1771.0,6.43914]
[1743690292529,41.4664,1771.8,1771.0,6.43914]
[1743690292724,12.53205,1771.8,1771.5,5.64482]
[1743690292929,6.888,1771.8,1771.6,5.6445]
[1743690293126,6.888,1771.8,1771.4,0.7928]
[1743690293127,7.31500358,1771.8,1771.4,0.7928]
[1743690293462,3.73150036,1771.7,1771.1,0.8176]
[1743690293672,11.2914,1771.3,1770.9,5.64669]
[1743690293961,6.887,1771.2,1770.9,5.64666]
[1743690295030,6.887,1771.2,1770.9,5.64665]
[1743690295560,6.887,1771.2,1770.9,11.29332]
[1743690296059,6.887,1771.2,1770.8,6.46472]
[1743690296060,5.64601,1771.2,1770.8,6.46472]
[1743690296271,12.53074,1771.3,1770.8,0.8176]
[1743690296428,12.53074,1771.3,1770.9,5.64668]
[1743690296625,6.885,1771.3,1771.0,5.6464]
[1743690296854,6.885,1771.3,1771.1,5.64608]
[1743690297530,5.64598,1771.2,1770.9,5.64676]
[1743690297724,6.885,1771.3,1770.8,0.8176]
[1743690297959,6.884,1771.4,1771.2,5.64561]
[1743690298157,6.884,1771.4,1771.2,11.29132]
[1743690298372,5.644,1771.8,1771.5,5.64491]
[1743690298544,6.884,1771.7,1771.5,5.64491]
[1743690299072,12.52831,1771.7,1771.3,6.44458]
[1743690299369,12.52831,1771.7,1771.0,5.64643]
[1743690299370,8.64461,1771.6,1771.1,0.7775]
[1743690299556,6.509421,1771.5,1771.1,0.7775]
[1743690299751,6.509421,1771.5,1771.1,6.42344]
[1743690299956,6.509421,1771.5,1771.1,12.06952]
[1743690300248,12.154611,1771.5,1771.1,6.42344]
[1743690300454,3.0,1771.6,1771.1,6.47990956]
[1743690300627,3.0,1771.6,1770.9,0.7807]
[1743690300835,5.64525,1771.4,1771.0,5.64624]
[1743690301027,8.64501,1771.5,1771.1,5.64596]
[1743690301262,12.5284,1771.7,1771.2,5.64578]
[1743690301429,14.424794,1771.7,1771.3,5.64541]
[1743690301631,14.424854,1771.7,1770.9,0.7807]
[1743690301832,5.64594,1771.2,1770.9,0.7807]
[1743690302157,6.881,1771.2,1770.9,6.42728]
[1743690302465,0.55,1771.6,1770.9,0.7807]
[1743690302759,6.881,1771.8,1771.4,6.47504]
[1743690302965,6.881,1771.8,1771.0,0.8298]
[1743690302966,5.64464,1771.6,1771.0,0.8298]
[1743690303163,0.6881,1771.7,1771.1,5.64601]
[1743690303164,5.6451,1771.5,1771.1,5.64601]
[1743690303351,5.64498,1771.5,1771.1,5.64608]
[1743690303543,5.64464,1771.6,1771.1,5.6462]
[1743690303744,6.98612,1771.6,1771.0,0.8298]
[1743690303944,0.698612,1771.5,1771.2,5.64559]
[1743690304145,5.64508,1771.5,1771.1,11.29222]
[1743690304330,5.64461,1771.6,1771.2,5.64571]
[1743690304531,8.2224,1771.8,1771.2,5.64571]
[1743690304532,6.881,1771.8,1771.7,5.64429]
[1743690304761,6.881,1771.8,1771.6,5.64448]
[1743690305061,6.881,1771.8,1771.7,5.64429]
[1743690305265,0.42247199,1772.3,1772.1,5.64273]
[1743690305266,6.88,1772.3,1772.1,5.64273]
[1743690305562,12.5224,1772.3,1771.6,5.64447]
[1743690305784,5.64335,1772.0,1771.6,5.64447]
[1743690306079,3.7867,1772.0,1771.5,0.7886]
[1743690306231,5.64379,1771.9,1771.5,6.43336]
[1743690306433,12.52304,1771.8,1771.5,0.7886]
[1743690306660,6.879,1771.8,1771.5,6.43352]
[1743690307165,12.52299,1771.8,1771.5,6.43352]
[1743690307363,0.55,1772.2,1771.8,5.64397]
[1743690307567,6.879,1772.2,1772.0,5.64327]
[1743690307731,12.52181,1772.2,1771.8,5.64395]
[1743690307934,6.879,1772.2,1771.5,6.43323]
[1743690308137,6.879,1772.2,1772.0,5.6431]
[1743690308380,6.879,1772.2,1772.0,5.64333]
[1743690308580,6.879,1772.2,1771.9,5.64354]
[1743690308924,6.879,1772.2,1771.1,5.64618]
[1743690308925,0.781,1772.1,1771.4,0.8188]
[1743690309040,5.6437,1771.9,1771.4,0.8188]
[1743690309241,6.26307,1771.9,1771.5,5.6447]
[1743690309550,5.64404,1771.8,1771.4,6.46404]
[1743690309752,6.877,1771.7,1771.5,5.6448]
[1743690310048,5.64499,1771.5,1771.2,5.64578]
[1743690310246,6.877,1771.7,1770.9,6.06000781]
[1743690310247,0.7622,1771.6,1771.3,5.64532]
[1743690310448,1.328355,1771.6,1771.1,0.7779]
[1743690310766,5.64508,1771.5,1771.1,6.42395]
[1743690310939,5.64531,1771.4,1771.1,6.42395]
[1743690311135,5.64649,1771.1,1770.8,0.8173]
[1743690311367,5.64666,1771.0,1770.5,0.8173]
[1743690311578,6.876,1771.2,1770.6,0.05647467]
[1743690311786,5.6462,1771.1,1770.8,5.64706]
[1743690311999,0.7893,1771.1,1770.5,5.64801]
[1743690312295,5.64685,1770.9,1770.6,5.64758]
[1743690312476,11.29391,1770.9,1770.5,5.70456502]
[1743690312791,6.212095,1770.8,1770.4,6.47206]
[1743690312994,6.876,1770.7,1770.4,6.47206]
[1743690313160,6.876,1770.7,1770.4,0.88027852]
[1743690313357,6.876,1770.7,1770.6,5.6478]
[1743690314077,6.875,1771.0,1770.7,5.64734]
[1743690314276,6.875,1771.0,1770.8,5.64706]
[1743690314639,7.01487,1771.3,1771.1,5.6462]
[1743690314640,6.875,1771.3,1771.1,5.6462]
[1743690314955,6.45532,1772.1,1771.7,5.64429]
[1743690315155,0.8122,1772.1,1771.8,5.64383]
[1743690315362,6.875,1772.2,1771.9,5.64364]
[1743690315856,6.875,1772.2,1772.0,5.64331]
[1743690316076,5.64164,1772.6,1772.2,5.64258]
[1743690316255,0.05,1772.9,1772.7,0.8103]
[1743690316463,0.05,1772.9,1772.8,5.69720135]
[1743690317047,5.63714,1774.0,1772.8,5.69720135]
[1743690317048,40.649,1774.1,1773.4,0.7764]
[1743690317402,7.18226832,1774.3,1773.8,5.63761]
[1743690317403,8.42107832,1774.3,1773.8,5.63761]
[1743690317603,5.63668,1774.1,1773.7,5.6377]
[1743690317805,6.875,1774.5,1773.8,6.20138]
[1743690318103,5.63598,1774.4,1773.8,7.05754228]
[1743690318248,5.63598,1774.4,1773.8,7.00118]
[1743690318601,41.4565,1774.8,1774.4,5.63561]
[1743690318602,47.521,1774.8,1774.4,5.63561]
[1743690318879,47.521,1774.8,1774.3,0.7959]
[1743690318880,53.15558,1774.8,1774.3,6.43189]
[1743690319056,6.872,1774.8,1774.5,5.63524]
[1743690319457,5.6349,1774.7,1774.3,7.075089]
[1743690319650,12.50669,1774.8,1774.3,6.4319]
[1743690320400,12.50669,1774.8,1774.4,0.05634902]
[1743690320703,12.50669,1774.8,1774.3,6.4319]
[1743690320704,5.635,1774.7,1774.3,0.85224903]
[1743690320979,5.63526,1774.6,1774.3,0.7959]
[1743690321147,5.63554,1774.5,1774.0,6.45285]
[1743690321354,5.63588,1774.4,1774.0,0.8159]
[1743690321554,5.63563,1774.5,1774.0,0.8159]
[1743690321755,5.6351,1774.6,1774.1,5.69287332]
[1743690321989,6.18463,1774.8,1774.1,1.21455433]
[1743690322171,12.50257,1774.8,1774.3,5.6358]
[1743690322369,12.50257,1774.8,1774.4,0.05634936]
[1743690322884,6.917,1774.9,1774.5,5.63532]
[1743690323086,0.05,1774.9,1774.6,6.46526]
[1743690323385,5.6844,1774.9,1774.6,0.8302]
[1743690323586,0.05,1774.9,1774.7,0.05634432]
[1743690323881,0.05,1774.9,1774.6,0.8302]
[1743690324289,0.05,1774.9,1774.8,5.63443]
[1743690324457,0.05,1774.9,1774.8,6.42943]
[1743690325376,0.05,1775.9,1774.8,6.42943]
[1743690325377,0.05,1775.9,1774.9,0.8312]
[1743690325557,0.05,1775.9,1775.8,6.46246]
[1743690325882,0.05,1775.9,1775.8,0.8312]
[1743690326085,0.05,1775.9,1775.8,6.51876505]
[1743690326466,0.05,1775.9,1775.8,7.73378055]
[1743690326669,5.67796,1776.9,1776.0,5.63063]
[1743690326983,5.67796,1776.9,1775.9,6.44496]
[1743690326984,0.05,1776.9,1775.9,6.44496]
[1743690327190,12.4922,1776.8,1775.9,6.44496]
[1743690327386,5.62884,1776.6,1776.0,5.63047]
[1743690327570,6.191724,1776.6,1776.1,5.63024]
[1743690327765,5.67785,1776.9,1776.2,5.68617206]
[1743690327966,0.05,1776.9,1776.3,5.62967]
[1743690328159,5.62814,1776.8,1776.4,0.05628129]
[1743690328359,5.62814,1776.8,1776.3,5.62967]
[1743690328561,5.62814,1776.8,1776.1,11.26024]
[1743690328812,6.195954,1776.8,1776.3,5.62967]
[1743690329010,6.195954,1776.8,1776.4,0.05628478]
[1743690329209,6.195954,1776.8,1776.1,5.63029]
[1743690329514,6.195954,1776.8,1776.2,0.05628974]
[1743690329515,11.824344,1776.8,1776.2,0.05628974]
[1743690329812,11.824344,1776.8,1776.2,0.05628637]
[1743690329813,5.6286,1776.7,1776.2,0.05628637]
[1743690329994,11.8768414,1776.7,1776.2,0.05628637]
[1743690330191,6.195934,1776.8,1776.2,5.68626637]
[1743690330357,5.62858,1776.7,1776.2,0.05628637]
[1743690330690,5.62904,1776.5,1776.0,5.63043]
[1743690330995,5.62941,1776.4,1775.9,6.44524]
[1743690331194,12.48593,1776.6,1775.9,6.44524]
[1743690331195,12.48593,1776.6,1776.0,5.6306]
[1743690331361,5.62983,1776.3,1775.9,0.8143]
[1743690331568,5.63015,1776.2,1775.9,0.8143]
[1743690331911,5.63034,1776.1,1775.6,6.39171]
[1743690332079,6.856,1776.1,1775.3,0.76]
[1743690332280,5.63095,1775.9,1775.3,0.76]
[1743690332527,7.669283,1776.6,1775.6,3.0]
[1743690332668,4.248593,1776.6,1776.0,0.76]
[1743690333009,9.877623,1776.6,1776.0,6.3905]
[1743690333298,6.877623,1776.6,1776.1,5.62999]
[1743690333468,5.62916,1776.5,1776.0,6.39055]
[1743690333663,6.877623,1776.6,1776.1,0.05629192]
[1743690333996,6.3169223,1776.5,1776.1,0.05629192]
[1743690334720,11.9462723,1776.5,1776.1,0.05629192]
[1743690334926,5.62999,1776.2,1776.1,0.05629192]
[1743690335111,5.62974,1776.3,1775.8,5.68742026]
[1743690335313,5.62974,1776.3,1775.8,11.31850026]
[1743690335512,1.12591,1776.3,1775.9,5.6309]
[1743690335708,0.8418,1776.9,1776.2,5.6297]
[1743690335894,6.854,1776.8,1776.3,5.68569379]
[1743690336095,6.854,1776.8,1776.3,11.31517379]
[1743690336295,0.05,1776.9,1776.6,5.62871]
[1743690336495,5.62812,1776.8,1776.4,5.62935]
[1743690337124,6.245855,1776.9,1776.5,0.05628236]
[1743690337300,0.617775,1776.9,1776.2,5.62983]
[1743690337622,0.617775,1776.9,1776.1,6.41164]
[1743690337623,5.62879,1776.6,1776.1,6.41164]
[1743690337837,3.0,1776.7,1776.1,0.7814]
[1743690338025,12.78103,1776.6,1776.1,6.41152]
[1743690338211,5.62921,1776.5,1776.1,0.7814]
[1743690338416,6.852,1776.6,1776.3,5.62945]
[1743690338727,5.62814,1776.8,1776.4,5.68545633]
[1743690339224,13.097645,1776.9,1776.5,0.05628206]
[1743690339426,0.05,1776.9,1776.6,5.68496206]
[1743690339613,0.05,1776.9,1776.7,0.8068]
[1743690339813,0.05,1776.9,1776.8,0.0562748]
[1743690340130,0.05,1776.9,1776.6,11.25716]
[1743690340306,0.05,1776.9,1776.6,5.62852]
[1743690340500,5.67791,1776.9,1776.5,5.62903]
[1743690340827,5.62814,1776.8,1776.5,0.05628201]
[1743690340999,5.62814,1776.8,1776.4,5.62925]
[1743690341328,6.85,1776.8,1776.2,5.62992]
[1743690341634,6.85,1776.8,1776.3,0.05628874]
[1743690341635,0.7845,1776.8,1776.3,0.05628874]
[1743690341837,6.41272,1776.8,1776.4,5.62932]
[1743690342009,1.9586061,1776.8,1776.2,5.62995]
[1743690342208,7.5867361,1776.8,1776.4,5.62926]
[1743690342403,5.62843,1776.7,1776.2,5.62998]
[1743690342602,1.9586061,1776.8,1776.4,5.62905]
[1743690342831,7.5867261,1776.8,1776.5,5.62892]
[1743690343033,7.5867261,1776.8,1776.2,5.62981]
[1743690343034,0.75867261,1776.7,1776.2,5.62981]
[1743690343215,5.63076,1776.0,1775.6,6.45348]
[1743690343415,12.47942,1776.1,1775.7,5.63141]
[1743690343617,5.63086,1776.0,1775.6,6.4534]
[1743690343929,5.63091,1776.0,1775.6,5.63185]
[1743690344127,7.6653,1776.1,1775.7,0.0563097]
[1743690344331,5.63075,1776.0,1775.6,5.63185]
[1743690344529,0.8163,1776.3,1776.1,5.6303]
[1743690344731,5.62908,1776.5,1776.1,5.6303]
[1743690344732,12.47808,1776.5,1776.1,5.6303]
[1743690344905,5.62989,1776.3,1775.9,5.63092]
[1743690345108,11.25889,1776.4,1775.9,5.68707741]
[1743690345312,5.62911,1776.5,1776.0,5.63061]
[1743690345538,0.562911,1776.4,1776.1,5.63008]
[1743690345719,6.848,1776.5,1776.1,5.63026]
[1743690345913,6.848,1776.5,1775.8,0.7753]
[1743690345914,12.47712,1776.5,1776.0,5.68681303]
[1743690346119,6.848,1776.5,1776.1,5.63012]
[1743690346315,12.47707,1776.5,1776.1,5.63012]
[1743690346655,6.848,1776.5,1776.2,5.68626357]
[1743690346815,5.62938,1776.4,1776.0,11.2611]
[1743690347012,6.848,1776.5,1776.2,5.62995]
[1743690347212,5.67788,1776.9,1776.3,0.05629238]
[1743690347412,5.67788,1776.9,1776.5,5.62882]
[1743690347413,12.52588,1776.9,1776.5,5.62882]
[1743690347612,5.62821,1776.8,1776.4,6.46214]
[1743690347861,5.62821,1776.8,1776.4,12.09139]
[1743690348064,14.416318,1776.9,1776.5,11.25791]
[1743690348268,8.788508,1776.9,1776.6,5.6287]
[1743690348565,12.5258,1776.9,1776.4,0.8328]
[1743690348721,5.62835,1776.8,1776.4,12.09126]
[1743690348922,5.629,1776.6,1776.2,0.8278]
[1743690349130,5.62844,1776.7,1776.3,5.62956]
[1743690349464,5.62844,1776.7,1775.9,0.8243]
[1743690349465,5.62916,1776.5,1775.9,0.8243]
[1743690349636,5.62979,1776.3,1775.9,6.45521]
[1743690349831,5.62971,1776.3,1775.9,12.08603]
[1743690350031,0.8268,1776.5,1776.0,0.05629742]
[1743690350236,0.8268,1776.5,1776.1,5.63]
[1743690350237,9.847,1776.5,1776.1,5.63]
[1743690350558,6.847,1776.5,1776.2,5.68615155]
[1743690350730,6.847,1776.5,1776.2,11.31597155]
[1743690351059,6.847,1776.5,1776.3,5.6295]
[1743690351261,6.847,1776.5,1776.2,5.62999]
[1743690351464,6.847,1776.5,1775.9,0.8243]
[1743690351465,13.161,1776.5,1775.9,0.8243]
[1743690351758,5.62942,1776.4,1776.0,11.26111]
[1743690351963,7.5317,1776.5,1776.1,5.68647355]
[1743690352166,7.5317,1776.5,1776.0,5.63046]
[1743690352167,5.62955,1776.4,1776.0,5.63046]
[1743690352331,5.62955,1776.4,1776.1,0.05629397]
[1743690352531,7.508583,1776.4,1776.1,0.05629397]
[1743690352932,13.16078,1776.5,1776.1,5.63016]
[1743690353136,12.47624,1776.5,1776.1,5.68645088]
[1743690353461,5.62966,1776.4,1776.0,5.63057]
[1743690353763,5.62966,1776.4,1776.1,0.05629746]
[1743690354067,5.62978,1776.3,1776.1,0.05629747]
[1743690354266,11.25963,1776.3,1776.0,0.05629747]
[1743690354471,5.62978,1776.3,1776.0,0.05629747]
[1743690354636,5.63019,1776.2,1775.8,5.63121]
[1743690354836,11.2605,1776.2,1775.9,0.05630223]
[1743690355040,5.63019,1776.2,1775.9,0.05630223]
[1743690355740,1.125963,1776.3,1775.9,0.05630223]
[1743690355937,6.845,1776.6,1776.2,5.62986]
[1743690356157,6.845,1776.6,1776.1,0.8272]
[1743690356369,6.845,1776.6,1776.4,5.62918]
[1743690356565,6.845,1776.6,1776.4,11.31466661]
[1743690356766,6.845,1776.6,1776.4,5.62918]
[1743690356974,6.448,1776.9,1776.5,0.7678]
[1743690356975,0.05,1776.9,1776.5,0.7678]
[1743690357145,0.05,1776.9,1776.8,5.62809]
[1743690357657,0.05,1776.9,1776.8,6.41869]
[1743690358654,0.05,1776.9,1776.8,6.47495403]
[1743690358870,1e-05,1776.9,1776.8,11.10540511]
[1743690359072,0.7555,1777.8,1777.6,5.62539]
[1743690359249,2.81619121,1778.1,1777.8,5.62492]
[1743690359451,1.2515503,1778.1,1777.9,5.62437]
[1743690359653,1.2515503,1778.1,1777.7,5.62506]
[1743690359976,1.2515503,1778.1,1777.8,5.62478]
[1743690360170,1.2515503,1778.1,1777.5,0.8239]
[1743690360359,5.62347,1778.3,1777.8,5.62492]
[1743690360540,0.7555,1778.4,1777.9,0.05623746]
[1743690360743,6.843,1778.6,1778.3,5.62321]
[1743690361071,0.05,1778.9,1778.1,0.8076]
[1743690361072,0.05,1778.9,1778.5,5.62271]
[1743690361273,0.05,1778.9,1778.1,7.6506]
[1743690361476,0.05,1778.9,1778.8,6.42936]
[1743690361778,2.81351612,1779.6,1779.3,5.61999]
[1743690361947,7.18137582,1779.6,1779.4,0.05619201]
[1743690362285,7.18138582,1779.6,1779.1,11.24128]
[1743690362464,7.18138582,1779.6,1779.3,5.62016]
[1743690362465,1.56196582,1779.6,1779.3,5.62016]
[1743690362647,5.61992,1779.4,1778.9,5.62131]
[1743690362842,5.62018,1779.3,1778.8,0.8076]
[1743690363079,6.958902,1779.4,1778.5,0.831]
[1743690363281,5.62072,1779.2,1778.6,5.67843132]
[1743690363447,5.62072,1779.2,1778.7,5.67807841]
[1743690363643,5.62108,1779.1,1778.6,5.62238]
[1743690363879,5.62163,1778.9,1778.5,0.831]
[1743690364096,12.46085,1779.1,1778.6,5.67838423]
[1743690364388,12.46085,1779.1,1778.6,5.62217]
[1743690364552,5.62194,1778.8,1778.5,0.831]
[1743690364748,5.62194,1778.8,1778.3,5.62322]
[1743690364974,5.62204,1778.8,1778.2,6.40625]
[1743690365169,5.62204,1778.8,1778.4,5.62302]
[1743690365380,5.6219,1778.8,1778.2,0.7826]
[1743690365552,5.62094,1779.1,1778.6,5.62222]
[1743690365751,11.24204,1779.1,1778.7,0.05621001]
[1743690365969,5.62179,1778.8,1778.3,5.62317]
[1743690366280,5.62254,1778.6,1778.2,0.7826]
[1743690366486,5.62284,1778.5,1778.0,5.62429]
[1743690366785,11.2458,1778.5,1778.1,0.05622692]
[1743690366985,5.62306,1778.4,1778.0,5.62429]
[1743690367282,5.62284,1778.5,1778.1,5.62394]
[1743690367459,5.62348,1778.3,1777.9,0.7662]
[1743690368284,5.62408,1778.1,1777.5,0.05624674]
[1743690368484,5.62506,1777.8,1777.3,6.40839]
[1743690368783,5.62506,1777.8,1777.4,0.05625055]
[1743690368784,5.62514,1777.8,1777.4,0.05625055]
[1743690368962,5.62514,1777.8,1777.4,11.30831055]
[1743690369158,5.62461,1777.9,1777.4,5.62599]
[1743690369359,6.836,1778.0,1777.4,0.05625024]
[1743690369566,6.836,1778.0,1777.5,5.62557]
[1743690369763,5.62489,1777.9,1777.6,0.05624387]
[1743690369963,5.62489,1777.9,1777.5,5.62571]
[1743690370165,5.62528,1777.7,1777.5,0.05624605]
[1743690370354,0.562284,1778.5,1777.4,5.62619]
[1743690370696,0.562284,1778.5,1778.1,5.62386]
[1743690370872,7.6335,1779.0,1778.2,0.05622808]
[1743690371190,5.62145,1778.9,1778.1,5.62368]
[1743690371352,5.62303,1778.4,1777.6,6.39718]
[1743690371552,0.7975,1778.5,1777.7,5.62524]
[1743690371760,6.836,1778.8,1778.4,5.62283]
[1743690371970,5.62238,1778.7,1778.2,6.3954]
[1743690372171,5.62293,1778.5,1778.0,5.62408]
[1743690372376,5.62301,1778.5,1778.0,11.2482]
[1743690372668,5.62301,1778.5,1777.9,0.7719]
[1743690372669,5.62382,1778.2,1777.9,0.7719]
[1743690372864,5.62337,1778.3,1777.9,0.7719]
[1743690373278,3.8109,1778.2,1777.4,0.8297]
[1743690373489,0.55,1778.1,1777.3,5.62628]
[1743690373708,5.62517,1777.8,1777.2,5.62674]
[1743690373869,5.62538,1777.7,1777.2,5.62674]
[1743690374084,11.25089,1777.7,1777.1,6.50677]
[1743690374387,5.6256,1777.6,1777.2,0.05625162]
[1743690374698,12.46121,1777.8,1777.3,5.62643]
[1743690374865,6.836,1777.8,1777.3,5.62643]
[1743690375207,5.62558,1777.6,1777.4,0.05625036]
[1743690375401,11.25081,1777.7,1777.2,5.68303559]
[1743690375704,5.62626,1777.4,1777.1,0.8797]
[1743690375870,5.62682,1777.2,1777.1,0.05]
[1743690377297,6.38402,1777.2,1777.1,0.05]
[1743690377670,0.7811,1777.5,1777.1,0.05]
[1743690377866,5.62585,1777.6,1777.1,5.67694]
[1743690378067,5.626,1777.5,1777.1,0.05]
[1743690378469,5.62667,1777.3,1777.1,0.05]
[1743690378673,11.25261,1777.4,1777.1,0.05]
[1743690378903,5.62653,1777.3,1777.1,0.10626494]
[1743690379197,5.62682,1777.2,1777.1,0.05]
[1743690379878,6.751803,1777.3,1777.1,0.05]
[1743690380085,12.46221,1777.4,1777.1,0.05]
[1743690380397,6.837,1777.5,1777.1,0.05]
[1743690380605,5.62682,1777.2,1777.1,0.05]
[1743690382175,8.62682,1777.2,1777.1,0.05]
[1743690382993,10.40750913,1777.2,1777.1,1e-05]
[1743690383204,12.01091704,1777.2,1777.1,1e-05]
[1743690384909,11.46091704,1777.2,1777.1,1e-05]
[1743690385914,17.87542791,1777.2,1777.1,1e-05]
[1743690386087,5.62624,1777.4,1777.1,1e-05]
[1743690386415,5.62682,1777.2,1777.1,1e-05]
[1743690386911,8.62682,1777.2,1777.1,1e-05]
[1743690388922,6.837,1777.2,1777.1,1e-05]
[1743690389088,5.6255,1777.7,1777.2,5.62661]
[1743690389284,5.62569,1777.6,1777.2,6.189272]
[1743690389497,5.6251,1777.8,1777.4,0.8302]
[1743690389820,6.836,1778.0,1777.4,0.8302]
[1743690390019,12.46013,1778.1,1777.7,11.2502]
[1743690390183,0.8183,1778.0,1777.8,0.05624248]
[1743690390383,5.62567,1777.6,1777.4,0.8302]
[1743690390815,5.62461,1777.9,1777.1,1e-05]
[1743690391118,5.6263,1777.4,1777.1,0.81786895]
[1743690391323,5.62655,1777.3,1777.1,0.76161]
[1743690391521,12.46161,1777.6,1777.2,5.62665]
[1743690391826,11.25203,1777.5,1777.1,6.38872]
[1743690392190,5.62629,1777.4,1777.1,0.76161]
[1743690392494,5.62592,1777.5,1777.2,5.68298134]
[1743690392695,6.836,1777.6,1777.1,0.76161]
[1743690392887,5.62596,1777.5,1777.2,0.05626276]
[1743690393089,5.62463,1777.9,1777.5,5.62576]
[1743690393332,5.62496,1777.8,1777.5,5.682011]
[1743690394599,5.62463,1777.9,1777.5,11.25147]
[1743690394800,5.62463,1777.9,1777.5,5.62571]
[1743690394999,5.62463,1777.9,1777.2,0.426191]
[1743690395221,5.62538,1777.7,1777.3,5.62626]
[1743690395519,5.62538,1777.7,1777.1,0.76161]
[1743690395520,5.62632,1777.4,1777.1,0.76161]
[1743690395834,12.46066,1777.6,1777.1,0.76161]
[1743690396004,5.62592,1777.5,1777.1,6.38862]
[1743690396340,6.835,1777.6,1777.1,6.38862]
[1743690396341,5.62638,1777.4,1777.1,0.76161]
[1743690396488,5.62656,1777.3,1777.1,0.76161]
[1743690397023,5.62682,1777.2,1777.1,1e-05]
[1743690397317,5.62656,1777.3,1777.1,1e-05]
[1743690398093,11.815258,1777.4,1777.1,1e-05]
[1743690398294,6.835,1777.6,1777.2,5.62679]
[1743690398644,6.834,1777.9,1777.3,0.88076111]
[1743690398943,5.62462,1777.9,1777.5,5.62556]
[1743690399093,5.62508,1777.8,1777.4,5.62607]
[1743690399294,5.62508,1777.8,1777.4,5.62605]
[1743690399800,5.62652,1777.3,1777.1,1e-05]
[1743690400419,5.62682,1777.2,1777.1,1e-05]
[1743690400644,6.834,1777.5,1777.3,5.62637]
[1743690400947,5.62632,1777.4,1777.1,1e-05]
[1743690401103,5.62665,1777.3,1777.1,1e-05]
[1743690401313,5.62682,1777.2,1777.1,1e-05]
[1743690402153,5.6262,1777.4,1777.1,1e-05]